[Event "DVM U12 2021-22"]
[Site "Naumburg"]
[Date "2022.03.25"]
[Round "1"]
[White "Uhl, Henry"]
[Black "Flierl, Veronika"]
[Result "0-1"]
[ECO "B18"]
[WhiteElo "1301"]
[BlackElo "1356"]
[Annotator "NA"]
[PlyCount "118"]
[EventDate "2022.03.25"]
[EventType "team-tourn"]
[EventRounds "7"]
[EventCountry "GER"]
[SourceTitle "playchess.com"]
[Source "ChessBase"]
[SourceQuality "1"]
[TimeControl "40/5400+30:1800+30"]

1. e4 {[%emt 0:00:07]} c6 {[%emt 0:00:07]} 2. Nc3 {[%emt 0:00:45]} d5 {[%emt 0:00:08]} 3. d4 {[%emt 0:00:22]} dxe4 {[%emt 0:00:13]} 4. Nxe4 {[%emt 0:00:12]} Bf5 {[%emt 0:00:14]} 5. f3 {[%emt 0:03:43]} e6 {[%emt 0:07:40]} 6. Bf4 {[%emt 0:06:05]} Nf6 {[%emt 0:06:34]} 7. Qd3 {[%emt 0:04:43]} Be7 {[%emt 0:08:35]} 8. Ne2 {[%emt 0:03:03]} Nd5 {[%emt 0:03:08]} 9. c4 {[%emt 0:02:38]} Nxf4 {[%emt 0:06:40]} 10. Nxf4 {[%emt 0:00:22]} Bb4+ {[%emt 0:00:47]} 11. Kf2 {[%emt 0:01:07]} Bd6 {[%emt 0:03:23]} 12. Nh5 {[%emt 0:01:50]} Qh4+ {[%emt 0:00:33]} 13. g3 {[%emt 0:00:39]} Qxh5 {[%emt 0:01:04]} 14. Nxd6+ {[%emt 0:00:36]} Kd7 {[%emt 0:00:57]} 15. Nxf5 {[%emt 0:00:18]} Qxf5 {[%emt 0:00:57]} 16. Qxf5 {[%emt 0:01:01]} exf5 {[%emt 0:00:07]} 17. Bh3 {[%emt 0:01:15]} g6 {[%emt 0:00:34]} 18. Rhe1 {[%emt 0:01:31]} Na6 {[%emt 0:02:06]} 19. a3 {[%emt 0:00:48]} Nc7 {[%emt 0:01:14]} 20. Re3 {[%emt 0:02:13]} Ne6 {[%emt 0:02:44]} 21. Rd1 {[%emt 0:02:19]} Rad8 {[%emt 0:04:23]} 22. f4 {[%emt 0:01:20]} Kc7 {[%emt 0:02:07]} 23. d5 {[%emt 0:00:50]} Rd7 {[%emt 0:04:31]} 24. Red3 {[%emt 0:01:43]} Nc5 {[%emt 0:01:17]} 25. Re3 {[%emt 0:01:32]} Rhd8 {[%emt 0:01:08]} 26. Bg2 {[%emt 0:00:52]} Na4 {[%emt 0:07:15]} 27. Rd2 {[%emt 0:02:40]} Nb6 {[%emt 0:00:18]} 28. Rc3 {[%emt 0:02:53]} Kb8 {[%emt 0:01:50]} 29. Rdc2 {[%emt 0:02:33]} cxd5 {[%emt 0:02:02]} 30. cxd5 {[%emt 0:00:26]} Nxd5 {[%emt 0:00:40]} 31. Bxd5 {[%emt 0:00:13]} Rxd5 {[%emt 0:00:10]} 32. Ke1 {[%emt 0:01:12]} R5d7 {[%emt 0:01:58]} 33. Re2 {[%emt 0:02:51]} Rc7 {[%emt 0:04:43]} 34. Rb3 {[%emt 0:01:41]} a6 {[%emt 0:00:49]} 35. Kf2 {[%emt 0:00:49]} Rcd7 {[%emt 0:00:34]} 36. Re5 {[%emt 0:01:15]} Rd2+ {[%emt 0:00:45]} 37. Kg1 {[%emt 0:00:58]} Rd1+ {[%emt 0:00:27]} 38. Kg2 {[%emt 0:00:35]} R8d2+ {[%emt 0:00:47]} 39. Kf3 {[%emt 0:00:44]} Rxh2 {[%emt 0:00:54]} 40. Rc5 {[%emt 0:02:33]} Rf1+ {[%emt 0:02:20]} 41. Ke3 {[%emt 0:30:14]} Rg2 {[%emt 0:30:38]} 42. Kd4 {[%emt 0:00:19]} Rd1+ {[%emt 0:02:27]} 43. Ke5 {[%emt 0:00:15]} Rdd2 {[%emt 0:01:02]} 44. Kf6 {[%emt 0:00:45]} Rxb2 {[%emt 0:00:40]} 45. Rxb2 {[%emt 0:00:26]} Rxb2 {[%emt 0:00:08]} 46. Rc3 {[%emt 0:00:13]} b5 {[%emt 0:02:41]} 47. Kxf7 {[%emt 0:00:14]} b4 {[%emt 0:01:36]} 48. axb4 {[%emt 0:00:23]} Rxb4 {[%emt 0:00:10]} 49. Ra3 {[%emt 0:00:10]} Ka7 {[%emt 0:00:13]} 50. Kg7 {[%emt 0:00:29]} Rb7+ {[%emt 0:00:14]} 51. Kh6 {[%emt 0:00:27]} Rd7 {[%emt 0:01:14]} 52. Kg5 {[%emt 0:00:37]} Kb6 {[%emt 0:01:00]} 53. Rb3+ {[%emt 0:00:08]} Kc5 {[%emt 0:00:41]} 54. Rc3+ {[%emt 0:00:09]} Kb4 {[%emt 0:00:17]} 55. Re3 {[%emt 0:00:09]} a5 {[%emt 0:00:33]} 56. Kf6 {[%emt 0:00:21]} a4 {[%emt 0:00:34]} 57. Kg5 {[%emt 0:00:13]} a3 {[%emt 0:00:18]} 58. Kh6 {[%emt 0:00:04]} a2 {[%emt 0:00:19]} 59. Re1 {[%emt 0:00:07]} Ra7 {[%emt 0:02:00]} 0-1

[Event "DVM U12 2021-22"]
[Site "Naumburg"]
[Date "2022.03.25"]
[Round "1"]
[White "Gulamzada, Elmir"]
[Black "Marinin, Georgii"]
[Result "0-1"]
[ECO "C42"]
[WhiteElo "1291"]
[BlackElo "1293"]
[Annotator "NA"]
[PlyCount "120"]
[EventDate "2022.03.25"]
[EventType "team-tourn"]
[EventRounds "7"]
[EventCountry "GER"]
[SourceTitle "playchess.com"]
[Source "ChessBase"]
[SourceQuality "1"]
[TimeControl "40/5400+30:1800+30"]

1. e4 {[%emt 0:00:04]} e5 {[%emt 0:00:03]} 2. Nf3 {[%emt 0:00:24]} Nf6 {[%emt 0:00:07]} 3. Nxe5 {[%emt 0:00:27]} d6 4. Nf3 {[%emt 0:00:37]} Nxe4 {[%emt 0:00:10]} 5. Nc3 {[%emt 0:00:27]} Nxc3 {[%emt 0:00:20]} 6. dxc3 {[%emt 0:02:29]} Be7 {[%emt 0:00:41]} 7. Bc4 {[%emt 0:00:59]} Nc6 {[%emt 0:01:19]} 8. O-O {[%emt 0:01:31]} Bg4 {[%emt 0:01:58]} 9. Bf4 {[%emt 0:01:17]} Qd7 {[%emt 0:02:56]} 10. Re1 {[%emt 0:01:51]} O-O-O {[%emt 0:10:39]} 11. Bb5 {[%emt 0:05:41]} Bf6 {[%emt 0:03:24]} 12. Qd3 {[%emt 0:01:51]} Bxf3 {[%emt 0:07:10]} 13. Qxf3 {[%emt 0:00:34]} a6 {[%emt 0:07:22]} 14. Ba4 {[%emt 0:00:40]} Rde8 {[%emt 0:03:45]} 15. b4 {[%emt 0:02:38]} b5 {[%emt 0:11:02]} 16. Bb3 {[%emt 0:00:24]} Kb8 {[%emt 0:04:09]} 17. Bd5 {[%emt 0:02:42]} Na7 {[%emt 0:02:18]} 18. Rad1 {[%emt 0:08:20]} Rxe1+ {[%emt 0:02:19]} 19. Rxe1 {[%emt 0:00:15]} c6 {[%emt 0:00:06]} 20. Bb3 {[%emt 0:00:27]} Kb7 {[%emt 0:00:30]} 21. c4 {[%emt 0:00:47]} bxc4 {[%emt 0:01:04]} 22. Bxc4 {[%emt 0:00:07]} d5 {[%emt 0:00:08]} 23. Bd3 {[%emt 0:00:38]} Re8 {[%emt 0:03:43]} 24. Rb1 {[%emt 0:02:52]} Nb5 {[%emt 0:03:04]} 25. Be3 {[%emt 0:05:38]} Nc3 {[%emt 0:02:32]} 26. Rb3 {[%emt 0:03:03]} Ra8 {[%emt 0:11:56]} 27. Bxh7 {[%emt 0:03:07]} Nxa2 {[%emt 0:04:59]} 28. Bd2 {[%emt 0:01:56]} Qd6 {[%emt 0:02:42]} 29. Bd3 {[%emt 0:02:05]} Qe5 {[%emt 0:01:42]} 30. c3 {[%emt 0:00:45]} d4 {[%emt 0:02:33]} 31. c4 {[%emt 0:04:22]} Qd6 {[%emt 0:00:41]} 32. Bb1 {[%emt 0:02:41]} Nc3 {[%emt 0:00:43]} 33. Bc2 {[%emt 0:01:29]} Na4 {[%emt 0:00:52]} 34. Rb1 {[%emt 0:02:27]} Nc3 {[%emt 0:02:38]} 35. Rb2 {[%emt 0:01:46]} Ne2+ {[%emt 0:03:01]} 36. Kf1 {[%emt 0:01:11]} Nc3 {[%emt 0:00:22]} 37. Qd3 {[%emt 0:00:46]} Qxh2 {[%emt 0:00:20]} 38. Qh3 {[%emt 0:03:38]} Qxh3 {[%emt 0:00:31]} 39. gxh3 {[%emt 0:00:21]} Kc7 {[%emt 0:00:35]} 40. Bf4+ {[%emt 0:01:52]} Kb7 {[%emt 0:00:19]} 41. Rb3 {[%emt 0:31:37]} Rd8 {[%emt 0:30:53]} 42. Bd3 {[%emt 0:00:19]} g6 {[%emt 0:02:02]} 43. Rb2 {[%emt 0:03:29]} Ka7 {[%emt 0:01:09]} 44. Rd2 {[%emt 0:03:04]} Be7 {[%emt 0:00:51]} 45. Rb2 {[%emt 0:02:24]} Rd7 {[%emt 0:00:10]} 46. Be5 {[%emt 0:01:38]} f6 {[%emt 0:00:28]} 47. Bf4 {[%emt 0:00:37]} g5 {[%emt 0:00:12]} 48. Bd2 {[%emt 0:00:20]} Rb7 {[%emt 0:00:10]} 49. Ke1 {[%emt 0:02:52]} Rxb4 {[%emt 0:00:05]} 50. Rxb4 Bxb4 51. Bxc3 {[%emt 0:02:29]} Bxc3+ {[%emt 0:00:40]} 52. Ke2 {[%emt 0:00:34]} Kb6 {[%emt 0:00:05]} 53. Kf3 {[%emt 0:00:25]} a5 {[%emt 0:00:04]} 54. Bc2 {[%emt 0:00:31]} Bd2 {[%emt 0:00:11]} 55. Ke4 {[%emt 0:00:25]} Kc5 {[%emt 0:00:25]} 56. Kd3 {[%emt 0:00:48]} Bc3 {[%emt 0:00:26]} 57. Ba4 {[%emt 0:01:19]} Kb4 {[%emt 0:01:20]} 58. Bxc6 {[%emt 0:00:51]} a4 {[%emt 0:00:04]} 59. Kc2 {[%emt 0:01:24]} a3 {[%emt 0:00:23]} 60. Kb1 {[%emt 0:01:19]} Kb3 {[%emt 0:00:04]} 0-1

[Event "DVM U12 2021-22"]
[Site "Naumburg"]
[Date "2022.03.25"]
[Round "1"]
[White "Becker, Joe Matthis"]
[Black "Fadeev, Justin Michael"]
[Result "1/2-1/2"]
[ECO "B33"]
[WhiteElo "1258"]
[BlackElo "1327"]
[Annotator "NA"]
[PlyCount "152"]
[EventDate "2022.03.25"]
[EventType "team-tourn"]
[EventRounds "7"]
[EventCountry "GER"]
[SourceTitle "playchess.com"]
[Source "ChessBase"]
[SourceQuality "1"]
[TimeControl "40/5400+30:1800+30"]

1. e4 {[%emt 0:00:04]} c5 {[%emt 0:00:00]} 2. Nf3 {[%emt 0:00:25]} Nc6 {[%emt 0:00:02]} 3. d4 {[%emt 0:00:47]} cxd4 {[%emt 0:00:31]} 4. Nxd4 {[%emt 0:00:07]} Nf6 {[%emt 0:00:45]} 5. Nc3 {[%emt 0:00:54]} g6 {[%emt 0:00:25]} 6. Bc4 {[%emt 0:01:01]} Bg7 {[%emt 0:00:46]} 7. Nxc6 {[%emt 0:00:44]} bxc6 {[%emt 0:00:20]} 8. O-O {[%emt 0:00:34]} O-O {[%emt 0:00:53]} 9. Bf4 {[%emt 0:00:43]} Nxe4 {[%emt 0:00:57]} 10. Nxe4 {[%emt 0:01:19]} d5 {[%emt 0:00:14]} 11. Bxd5 {[%emt 0:00:39]} cxd5 {[%emt 0:00:17]} 12. Nc3 {[%emt 0:00:32]} Ba6 {[%emt 0:02:44]} 13. Re1 {[%emt 0:00:21]} e6 {[%emt 0:00:54]} 14. Qd2 {[%emt 0:03:45]} Rc8 {[%emt 0:02:32]} 15. Rad1 {[%emt 0:06:57]} Qa5 {[%emt 0:07:59]} 16. Be5 {[%emt 0:05:13]} Bxe5 {[%emt 0:03:16]} 17. Rxe5 {[%emt 0:00:11]} Qb4 {[%emt 0:04:12]} 18. Rb1 {[%emt 0:08:32]} d4 {[%emt 0:01:23]} 19. Ne4 {[%emt 0:01:51]} Qxd2 {[%emt 0:00:22]} 20. Nxd2 {[%emt 0:00:09]} Rxc2 {[%emt 0:00:26]} 21. Nf3 {[%emt 0:00:32]} d3 {[%emt 0:00:54]} 22. Ra5 {[%emt 0:06:40]} Bc4 {[%emt 0:01:36]} 23. b3 {[%emt 0:01:14]} Bd5 {[%emt 0:00:53]} 24. Ne1 {[%emt 0:00:40]} Rc3 {[%emt 0:00:55]} 25. Rd1 {[%emt 0:02:11]} Rfc8 {[%emt 0:05:21]} 26. Rxd3 {[%emt 0:04:53]} Rxd3 {[%emt 0:00:17]} 27. Nxd3 {[%emt 0:00:09]} Be4 {[%emt 0:00:14]} 28. Rc5 {[%emt 0:00:39]} Rd8 {[%emt 0:00:36]} 29. Ne1 {[%emt 0:02:09]} Rd1 {[%emt 0:00:11]} 30. f3 {[%emt 0:00:11]} Rxe1+ {[%emt 0:01:29]} 31. Kf2 {[%emt 0:00:07]} Ra1 {[%emt 0:00:34]} 32. fxe4 {[%emt 0:00:07]} Rxa2+ {[%emt 0:00:06]} 33. Kf3 {[%emt 0:00:16]} Ra3 {[%emt 0:01:12]} 34. Rb5 {[%emt 0:00:26]} a5 {[%emt 0:00:25]} 35. Kf4 {[%emt 0:02:38]} a4 {[%emt 0:01:06]} 36. bxa4 {[%emt 0:00:58]} Rxa4 {[%emt 0:00:10]} 37. g4 {[%emt 0:01:25]} Kg7 {[%emt 0:01:02]} 38. h4 {[%emt 0:02:13]} h6 {[%emt 0:01:56]} 39. Rb7 {[%emt 0:01:26]} Ra1 {[%emt 0:00:27]} 40. g5 {[%emt 0:01:17]} Rf1+ {[%emt 0:01:13]} 41. Kg3 {[%emt 0:30:52]} hxg5 {[%emt 0:30:31]} 42. hxg5 {[%emt 0:00:13]} Rg1+ {[%emt 0:00:50]} 43. Kf4 {[%emt 0:00:19]} e5+ {[%emt 0:01:45]} 44. Kxe5 {[%emt 0:00:38]} Rxg5+ {[%emt 0:00:22]} 45. Kf4 {[%emt 0:00:05]} Rg1 {[%emt 0:02:08]} 46. Rb5 {[%emt 0:00:55]} Kh6 {[%emt 0:00:42]} 47. Rb7 {[%emt 0:05:24]} g5+ {[%emt 0:01:22]} 48. Kf5 {[%emt 0:01:33]} Kg7 {[%emt 0:02:38]} 49. e5 {[%emt 0:01:04]} Re1 {[%emt 0:00:35]} 50. Re7 {[%emt 0:01:14]} Kf8 {[%emt 0:00:57]} 51. Rb7 {[%emt 0:02:02]} g4 {[%emt 0:01:06]} 52. Kxg4 {[%emt 0:02:00]} Rxe5 {[%emt 0:00:09]} 53. Kf4 {[%emt 0:00:12]} Re7 {[%emt 0:00:31]} 54. Rb6 {[%emt 0:01:31]} Kg7 {[%emt 0:01:11]} 55. Kf5 {[%emt 0:00:18]} Ra7 {[%emt 0:00:53]} 56. Rb5 {[%emt 0:01:48]} Ra1 {[%emt 0:02:09]} 57. Kg4 {[%emt 0:01:39]} f6 {[%emt 0:00:45]} 58. Rb7+ {[%emt 0:01:22]} Kg6 {[%emt 0:00:23]} 59. Rb8 {[%emt 0:00:08]} Ra4+ {[%emt 0:00:16]} 60. Kg3 {[%emt 0:00:30]} Kg5 {[%emt 0:00:49]} 61. Rg8+ {[%emt 0:00:56]} Kf5 {[%emt 0:00:15]} 62. Rf8 {[%emt 0:01:03]} Ra3+ {[%emt 0:00:35]} 63. Kf2 {[%emt 0:00:44]} Ra6 {[%emt 0:00:24]} 64. Kf3 {[%emt 0:00:20]} Re6 {[%emt 0:01:13]} 65. Kg3 {[%emt 0:01:08]} Ke5 {[%emt 0:00:34]} 66. Kg4 {[%emt 0:00:25]} Re7 {[%emt 0:01:12]} 67. Kh5 {[%emt 0:00:26]} Rg7 {[%emt 0:02:29]} 68. Kh6 {[%emt 0:00:25]} Rg1 {[%emt 0:01:08]} 69. Kh5 {[%emt 0:01:06]} f5 {[%emt 0:00:34]} 70. Ra8 {[%emt 0:00:47]} Kf4 {[%emt 0:00:40]} 71. Ra4+ {[%emt 0:00:13]} Kf3 {[%emt 0:02:07]} 72. Ra3+ {[%emt 0:00:11]} Kf2 {[%emt 0:03:08]} 73. Ra2+ {[%emt 0:00:07]} Kg3 {[%emt 0:00:26]} 74. Ra3+ {[%emt 0:00:10]} Kg2 {[%emt 0:00:28]} 75. Ra2+ {[%emt 0:00:07]} Kh3 {[%emt 0:00:14]} 76. Rf2 {[%emt 0:01:19]} Rg4 {[%emt 0:03:29]} 1/2-1/2

[Event "DVM U12 2021-22"]
[Site "Naumburg"]
[Date "2022.03.25"]
[Round "1"]
[White "Weber, Nikita"]
[Black "Ermitsch, Magnus"]
[Result "0-1"]
[ECO "A22"]
[WhiteElo "1243"]
[BlackElo "2127"]
[Annotator "NA"]
[PlyCount "52"]
[EventDate "2022.03.25"]
[EventType "team-tourn"]
[EventRounds "7"]
[EventCountry "GER"]
[SourceTitle "playchess.com"]
[Source "ChessBase"]
[SourceQuality "1"]
[TimeControl "40/5400+30:1800+30"]

1. c4 {[%emt 0:00:00]} e5 2. Nc3 Nf6 {[%emt 0:00:26]} 3. g3 {[%emt 0:00:24]} Nc6 {[%emt 0:01:37]} 4. Bg2 {[%emt 0:00:20]} Bc5 {[%emt 0:00:48]} 5. e3 {[%emt 0:00:47]} O-O {[%emt 0:11:43]} 6. a3 {[%emt 0:00:31]} a5 {[%emt 0:01:25]} 7. Nge2 {[%emt 0:00:15]} Re8 {[%emt 0:02:00]} 8. O-O {[%emt 0:01:00]} Bf8 {[%emt 0:07:28]} 9. b3 {[%emt 0:01:20]} Ne7 {[%emt 0:03:43]} 10. Nd5 {[%emt 0:02:42]} Nexd5 {[%emt 0:01:21]} 11. cxd5 {[%emt 0:00:15]} b6 {[%emt 0:05:56]} 12. Nc3 {[%emt 0:05:59]} Bb7 {[%emt 0:01:43]} 13. e4 {[%emt 0:03:34]} Bc5 {[%emt 0:02:04]} 14. Ne2 {[%emt 0:01:13]} c6 {[%emt 0:01:41]} 15. d4 {[%emt 0:01:16]} exd4 {[%emt 0:01:03]} 16. Nxd4 {[%emt 0:04:18]} Nxe4 {[%emt 0:02:07]} 17. Bb2 {[%emt 0:01:15]} cxd5 {[%emt 0:02:43]} 18. Nf5 {[%emt 0:00:44]} Qg5 {[%emt 0:10:09]} 19. Nxg7 {[%emt 0:01:35]} Nxf2 {[%emt 0:05:19]} 20. Qc2 {[%emt 0:04:11]} Ne4+ {[%emt 0:00:26]} 21. Kh1 {[%emt 0:01:03]} Nxg3+ {[%emt 0:00:25]} 22. hxg3 {[%emt 0:00:07]} Qh6+ {[%emt 0:00:05]} 23. Bh3 {[%emt 0:00:13]} Qxh3+ {[%emt 0:00:16]} 24. Qh2 {[%emt 0:00:10]} d4+ {[%emt 0:01:07]} 25. Rf3 {[%emt 0:00:06]} Bxf3+ {[%emt 0:00:10]} 26. Kg1 {[%emt 0:00:07]} d3+ {[%emt 0:00:07]} 0-1

[Event "DVM U12 2021-22"]
[Site "Naumburg"]
[Date "2022.03.25"]
[Round "1"]
[White "Pimenov, Danil"]
[Black "Weidemann, Max"]
[Result "1-0"]
[ECO "C44"]
[WhiteElo "1227"]
[BlackElo "947"]
[Annotator "NA"]
[PlyCount "89"]
[EventDate "2022.03.25"]
[EventType "team-tourn"]
[EventRounds "7"]
[EventCountry "GER"]
[SourceTitle "playchess.com"]
[Source "ChessBase"]
[SourceQuality "1"]
[TimeControl "40/5400+30:1800+30"]

1. e4 {[%emt 0:00:04]} e5 {[%emt 0:00:10]} 2. d4 {[%emt 0:00:11]} exd4 {[%emt 0:02:09]} 3. c3 {[%emt 0:00:14]} dxc3 {[%emt 0:00:28]} 4. Bc4 {[%emt 0:00:08]} Nc6 {[%emt 0:00:38]} 5. Nxc3 {[%emt 0:00:24]} Nf6 {[%emt 0:00:41]} 6. Nf3 {[%emt 0:00:38]} Bb4 {[%emt 0:01:19]} 7. e5 {[%emt 0:01:02]} Ne4 {[%emt 0:02:52]} 8. Bxf7+ {[%emt 0:01:05]} Kxf7 {[%emt 0:00:26]} 9. Qd5+ {[%emt 0:00:12]} Kf8 {[%emt 0:03:42]} 10. Qxe4 {[%emt 0:00:09]} Bxc3+ {[%emt 0:01:25]} 11. bxc3 {[%emt 0:00:10]} Qe7 {[%emt 0:01:54]} 12. O-O {[%emt 0:01:18]} d6 {[%emt 0:01:58]} 13. Bg5 {[%emt 0:00:37]} Qe6 {[%emt 0:00:33]} 14. Rfe1 {[%emt 0:02:17]} dxe5 {[%emt 0:07:03]} 15. Nxe5 {[%emt 0:00:26]} Nxe5 {[%emt 0:00:23]} 16. Qf4+ {[%emt 0:00:50]} Qf5 {[%emt 0:01:08]} 17. Qxe5 {[%emt 0:01:00]} Qxe5 {[%emt 0:00:15]} 18. Rxe5 {[%emt 0:00:07]} Bd7 {[%emt 0:07:35]} 19. Rd1 {[%emt 0:00:56]} Bc6 {[%emt 0:00:55]} 20. Bd8 {[%emt 0:02:22]} Rc8 {[%emt 0:05:56]} 21. Bxc7 {[%emt 0:01:00]} Kf7 {[%emt 0:01:44]} 22. Bd6 {[%emt 0:00:55]} Rhe8 {[%emt 0:04:10]} 23. f4 {[%emt 0:02:00]} Rxe5 {[%emt 0:05:12]} 24. Bxe5 {[%emt 0:00:14]} g6 {[%emt 0:04:36]} 25. Kf2 {[%emt 0:00:40]} Ke7 {[%emt 0:06:19]} 26. g4 {[%emt 0:00:49]} Rf8 {[%emt 0:02:34]} 27. Bd6+ {[%emt 0:00:21]} Kf7 {[%emt 0:00:17]} 28. Bxf8 {[%emt 0:00:07]} Kxf8 {[%emt 0:00:08]} 29. Rd8+ {[%emt 0:00:31]} Ke7 {[%emt 0:00:14]} 30. Rh8 {[%emt 0:00:10]} h5 {[%emt 0:01:36]} 31. gxh5 {[%emt 0:00:08]} gxh5 {[%emt 0:00:12]} 32. Rxh5 {[%emt 0:00:06]} Kf6 {[%emt 0:01:01]} 33. Ke3 {[%emt 0:00:15]} a6 {[%emt 0:01:01]} 34. Re5 {[%emt 0:00:20]} Bg2 {[%emt 0:01:15]} 35. h4 {[%emt 0:00:12]} Kg6 {[%emt 0:00:23]} 36. Rg5+ {[%emt 0:00:10]} Kf6 {[%emt 0:00:17]} 37. Rxg2 {[%emt 0:00:04]} Kf7 {[%emt 0:00:19]} 38. h5 {[%emt 0:00:03]} Kf6 {[%emt 0:00:18]} 39. h6 {[%emt 0:00:04]} Kf5 {[%emt 0:00:07]} 40. h7 {[%emt 0:00:03]} Kf6 {[%emt 0:00:14]} 41. h8=Q+ {[%emt 0:30:09]} Kf5 {[%emt 0:30:14]} 42. Rg5+ {[%emt 0:00:12]} Ke6 {[%emt 0:00:20]} 43. Qh6+ {[%emt 0:00:06]} Kf7 {[%emt 0:00:12]} 44. Rg7+ {[%emt 0:00:05]} Kf8 {[%emt 0:00:17]} 45. Qh8# 1-0

[Event "DVM U12 2021-22"]
[Site "Naumburg"]
[Date "2022.03.25"]
[Round "1"]
[White "Wolf, Anna"]
[Black "Zobel, Christian"]
[Result "0-1"]
[ECO "C42"]
[WhiteElo "1205"]
[BlackElo "1547"]
[Annotator "NA"]
[PlyCount "112"]
[EventDate "2022.03.25"]
[EventType "team-tourn"]
[EventRounds "7"]
[EventCountry "GER"]
[SourceTitle "playchess.com"]
[Source "ChessBase"]
[SourceQuality "1"]
[TimeControl "40/5400+30:1800+30"]

1. e4 {[%emt 0:00:03]} e5 {[%emt 0:00:33]} 2. Nf3 {[%emt 0:00:11]} Nf6 {[%emt 0:00:06]} 3. Nxe5 {[%emt 0:00:50]} d6 {[%emt 0:00:14]} 4. Nf3 {[%emt 0:00:14]} Nxe4 {[%emt 0:00:12]} 5. Bc4 {[%emt 0:00:19]} d5 {[%emt 0:01:25]} 6. Qe2 {[%emt 0:01:00]} Be7 {[%emt 0:01:43]} 7. d3 {[%emt 0:02:18]} Nf6 {[%emt 0:02:16]} 8. Bb3 {[%emt 0:02:23]} O-O {[%emt 0:01:18]} 9. O-O {[%emt 0:00:35]} Re8 {[%emt 0:01:43]} 10. Qd1 {[%emt 0:06:11]} Bg4 {[%emt 0:03:23]} 11. Re1 {[%emt 0:02:30]} c6 {[%emt 0:04:12]} 12. Bg5 {[%emt 0:00:39]} Nbd7 {[%emt 0:01:51]} 13. Nbd2 {[%emt 0:00:47]} Qc7 14. h3 {[%emt 0:04:31]} Bh5 {[%emt 0:02:34]} 15. c4 {[%emt 0:00:33]} dxc4 {[%emt 0:08:32]} 16. dxc4 {[%emt 0:01:03]} Rad8 {[%emt 0:01:40]} 17. Qc2 {[%emt 0:04:36]} Nc5 {[%emt 0:09:08]} 18. Rad1 {[%emt 0:01:15]} Bg6 {[%emt 0:04:36]} 19. Qc3 {[%emt 0:04:00]} h6 {[%emt 0:00:42]} 20. Bh4 {[%emt 0:00:28]} Nd3 {[%emt 0:01:02]} 21. Bg3 {[%emt 0:01:18]} Qc8 {[%emt 0:02:33]} 22. Re3 {[%emt 0:01:31]} Bb4 {[%emt 0:00:37]} 23. Rxe8+ {[%emt 0:02:38]} Nxe8 {[%emt 0:00:14]} 24. Qc2 {[%emt 0:02:39]} Nxf2 {[%emt 0:01:13]} 25. Qc1 {[%emt 0:00:59]} Nxd1 {[%emt 0:00:05]} 26. Qxd1 {[%emt 0:00:19]} Bxd2 {[%emt 0:00:06]} 27. Nxd2 {[%emt 0:00:11]} Qd7 {[%emt 0:00:21]} 28. Be1 {[%emt 0:00:56]} Nf6 {[%emt 0:00:40]} 29. Qe2 {[%emt 0:02:13]} Re8 {[%emt 0:01:26]} 30. Qf2 {[%emt 0:00:38]} Bh5 {[%emt 0:02:51]} 31. Qf1 {[%emt 0:05:41]} Qd4+ {[%emt 0:02:30]} 32. Kh1 {[%emt 0:00:36]} Qe3 {[%emt 0:00:29]} 33. Nf3 {[%emt 0:01:51]} Bxf3 {[%emt 0:00:04]} 34. Qxf3 {[%emt 0:00:06]} Qxf3 {[%emt 0:00:52]} 35. gxf3 {[%emt 0:03:38]} Rxe1+ {[%emt 0:00:05]} 36. Kg2 {[%emt 0:00:14]} Re2+ {[%emt 0:00:04]} 37. Kg3 {[%emt 0:00:05]} Rxb2 {[%emt 0:00:09]} 38. Kf4 {[%emt 0:00:23]} Nd7 {[%emt 0:00:07]} 39. Kf5 {[%emt 0:00:28]} Nc5 {[%emt 0:00:11]} 40. Ke5 {[%emt 0:00:18]} Nxb3 {[%emt 0:00:05]} 41. axb3 {[%emt 0:30:13]} Rxb3 {[%emt 0:30:04]} 42. Kd6 {[%emt 0:00:06]} a5 {[%emt 0:00:05]} 43. Kc7 {[%emt 0:00:13]} a4 {[%emt 0:00:03]} 44. h4 {[%emt 0:00:14]} a3 {[%emt 0:00:04]} 45. f4 {[%emt 0:00:08]} a2 {[%emt 0:00:03]} 46. f5 {[%emt 0:00:10]} a1=Q {[%emt 0:00:05]} 47. f6 {[%emt 0:00:06]} Qe5+ {[%emt 0:00:12]} 48. Kc8 {[%emt 0:01:12]} b5 {[%emt 0:00:01]} 49. cxb5 {[%emt 0:00:07]} Rxb5 {[%emt 0:00:05]} 50. h5 {[%emt 0:00:07]} Rb8+ {[%emt 0:00:06]} 51. Kd7 {[%emt 0:00:12]} Qe6+ {[%emt 0:00:21]} 52. Kc7 {[%emt 0:00:01]} Qe5+ {[%emt 0:01:21]} 53. Kxc6 {[%emt 0:00:15]} Rc8+ {[%emt 0:00:12]} 54. Kb6 {[%emt 0:00:14]} Qc5+ {[%emt 0:00:05]} 55. Kb7 {[%emt 0:00:18]} Qc6+ {[%emt 0:00:04]} 56. Ka7 {[%emt 0:00:09]} Ra8# 0-1

[Event "DVM U12 2021-22"]
[Site "Naumburg"]
[Date "2022.03.25"]
[Round "1"]
[White "Aaron Joel N"]
[Black "Dorendorf, Mika"]
[Result "0-1"]
[ECO "B30"]
[WhiteElo "1197"]
[BlackElo "1550"]
[Annotator "NA"]
[PlyCount "78"]
[EventDate "2022.03.25"]
[EventType "team-tourn"]
[EventRounds "7"]
[EventCountry "GER"]
[SourceTitle "playchess.com"]
[Source "ChessBase"]
[SourceQuality "1"]
[TimeControl "40/5400+30:1800+30"]

1. e4 {[%emt 0:00:02]} c5 {[%emt 0:00:08]} 2. Nf3 {[%emt 0:00:11]} Nc6 {[%emt 0:00:04]} 3. Nc3 {[%emt 0:00:46]} e6 {[%emt 0:00:35]} 4. Bb5 {[%emt 0:01:06]} a6 {[%emt 0:01:32]} 5. Ba4 {[%emt 0:00:23]} b5 {[%emt 0:00:16]} 6. Nxb5 {[%emt 0:02:20]} axb5 {[%emt 0:00:04]} 7. Bxb5 {[%emt 0:00:12]} Nge7 {[%emt 0:00:28]} 8. d3 {[%emt 0:00:40]} Qa5+ {[%emt 0:00:30]} 9. c3 {[%emt 0:01:34]} Qxb5 {[%emt 0:00:16]} 10. O-O {[%emt 0:00:29]} Ng6 {[%emt 0:00:35]} 11. d4 {[%emt 0:01:17]} cxd4 {[%emt 0:00:21]} 12. cxd4 {[%emt 0:00:09]} Ba6 {[%emt 0:00:39]} 13. d5 {[%emt 0:01:39]} Qxf1+ {[%emt 0:00:06]} 14. Qxf1 {[%emt 0:00:42]} Bxf1 {[%emt 0:00:05]} 15. dxc6 {[%emt 0:00:43]} Bb5 {[%emt 0:00:11]} 16. cxd7+ {[%emt 0:00:41]} Kxd7 {[%emt 0:00:59]} 17. Be3 {[%emt 0:01:12]} Ra6 {[%emt 0:01:28]} 18. Nd4 {[%emt 0:01:59]} Bc4 {[%emt 0:01:08]} 19. b3 {[%emt 0:01:02]} e5 {[%emt 0:01:08]} 20. bxc4 {[%emt 0:00:45]} exd4 {[%emt 0:00:05]} 21. Bxd4 {[%emt 0:00:55]} f6 {[%emt 0:00:36]} 22. c5 {[%emt 0:00:55]} Nf4 {[%emt 0:00:22]} 23. Kf1 {[%emt 0:00:52]} Ne6 {[%emt 0:00:16]} 24. Be3 {[%emt 0:01:19]} Bxc5 {[%emt 0:00:10]} 25. Bxc5 {[%emt 0:03:06]} Nxc5 {[%emt 0:00:06]} 26. f3 {[%emt 0:00:32]} Rha8 {[%emt 0:00:07]} 27. Rd1+ {[%emt 0:00:24]} Ke6 {[%emt 0:00:05]} 28. Rd5 {[%emt 0:01:21]} Rxa2 {[%emt 0:00:23]} 29. Rxc5 {[%emt 0:00:40]} Rd2 {[%emt 0:00:11]} 30. Rc1 {[%emt 0:00:18]} Raa2 {[%emt 0:00:03]} 31. f4 {[%emt 0:01:28]} Rxg2 {[%emt 0:00:13]} 32. f5+ {[%emt 0:01:04]} Ke5 {[%emt 0:00:04]} 33. Rc7 {[%emt 0:01:12]} Rxh2 {[%emt 0:00:18]} 34. Rc5+ {[%emt 0:00:27]} Kf4 {[%emt 0:00:08]} 35. Kg1 {[%emt 0:00:56]} Rhc2 {[%emt 0:00:37]} 36. Rxc2 {[%emt 0:00:23]} Rxc2 {[%emt 0:00:05]} 37. Kf1 {[%emt 0:00:33]} Kxe4 {[%emt 0:00:06]} 38. Ke1 {[%emt 0:00:49]} Kd3 {[%emt 0:00:24]} 39. Kd1 {[%emt 0:00:32]} Rh2 {[%emt 0:00:07]} 0-1